[Event "*** Titled Tuesday Blitz"]
[Site "Chess.com"]
[Date "2020.05.12"]
[Round "8"]
[White "zivicd"]
[Black "dosto07"]
[Result "0-1"]
[WhiteElo "2237"]
[BlackElo "2136"]
[TimeControl "180+1"]
[EndTime "11:32:45 PDT"]
[Termination "dosto07 won on time"]

1. e4 {[%clk 0:03:00.9]} 1... e5 {[%clk 0:02:59.3]} 2. Nf3 {[%clk 0:02:59.3]}
2... Nc6 {[%clk 0:02:58.2]} 3. d4 {[%clk 0:02:58.6]} 3... exd4 {[%clk
0:02:56.6]} 4. Nxd4 {[%clk 0:02:58.6]} 4... Nf6 {[%clk 0:02:55.5]} 5. Nxc6
{[%clk 0:02:58.2]} 5... bxc6 {[%clk 0:02:55.4]} 6. e5 {[%clk 0:02:58.3]} 6...
Qe7 {[%clk 0:02:55.3]} 7. Qe2 {[%clk 0:02:58.4]} 7... Nd5 {[%clk 0:02:54.5]} 8.
h4 {[%clk 0:02:58.8]} 8... d6 {[%clk 0:02:41.5]} 9. c4 {[%clk 0:02:48.7]} 9...
Nb6 {[%clk 0:02:33.1]} 10. exd6 {[%clk 0:02:31.7]} 10... Qxe2+ {[%clk
0:02:26.2]} 11. Bxe2 {[%clk 0:02:31.4]} 11... cxd6 {[%clk 0:02:26.8]} 12. Nc3
{[%clk 0:02:20.8]} 12... Be6 {[%clk 0:02:26.1]} 13. b3 {[%clk 0:02:17.6]} 13...
Be7 {[%clk 0:02:25.6]} 14. Bb2 {[%clk 0:02:10.8]} 14... a5 {[%clk 0:02:24.7]}
15. O-O-O {[%clk 0:01:59.7]} 15... O-O {[%clk 0:02:21.2]} 16. Bf3 {[%clk
0:01:55.5]} 16... Rfc8 {[%clk 0:02:09.5]} 17. Ne4 {[%clk 0:01:02.1]} 17... d5
{[%clk 0:01:56.4]} 18. Ng5 {[%clk 0:00:56.9]} 18... a4 {[%clk 0:01:54]} 19. Nxe6
{[%clk 0:00:49.7]} 19... fxe6 {[%clk 0:01:53.1]} 20. Bg4 {[%clk 0:00:49.3]}
20... Rd8 {[%clk 0:01:05.4]} 21. Bxe6+ {[%clk 0:00:48.4]} 21... Kf8 {[%clk
0:01:04.1]} 22. Rh3 {[%clk 0:00:22.1]} 22... axb3 {[%clk 0:01:01.6]} 23. Rf3+
{[%clk 0:00:19.6]} 23... Bf6 {[%clk 0:00:59.6]} 24. axb3 {[%clk 0:00:14.2]}
24... Ke7 {[%clk 0:00:52.9]} 25. Bxf6+ {[%clk 0:00:11.7]} 25... gxf6 {[%clk
0:00:50.6]} 26. Re1 {[%clk 0:00:11.8]} 26... Ra1+ {[%clk 0:00:45]} 27. Kd2
{[%clk 0:00:11.6]} 27... Rxe1 {[%clk 0:00:44.6]} 28. Kxe1 {[%clk 0:00:11.5]}
28... Kxe6 {[%clk 0:00:44.5]} 29. Re3+ {[%clk 0:00:10.8]} 29... Kd6 {[%clk
0:00:42]} 30. Rf3 {[%clk 0:00:09.6]} 30... Rf8 {[%clk 0:00:37.4]} 31. Rf4 {[%clk
0:00:07.4]} 31... dxc4 {[%clk 0:00:35.5]} 32. bxc4 {[%clk 0:00:06.4]} 32... Kc5
{[%clk 0:00:35.9]} 33. g4 {[%clk 0:00:05.9]} 33... Nxc4 {[%clk 0:00:33.8]} 34.
Kf1 {[%clk 0:00:05.8]} 34... Ne5 {[%clk 0:00:31.7]} 35. g5 {[%clk 0:00:04.3]}
35... Kd6 {[%clk 0:00:30.3]} 36. gxf6 {[%clk 0:00:03.5]} 36... Ke6 {[%clk
0:00:30.3]} 37. Re4 {[%clk 0:00:02.1]} 37... Rxf6 {[%clk 0:00:29.3]} 38. f4
{[%clk 0:00:02.2]} 38... Rf5 {[%clk 0:00:27.3]} 0-1

[Event "*** Titled Tuesday Blitz"]
[Site "Chess.com"]
[Date "2020.05.12"]
[Round "8"]
[White "Efremov_Vlad"]
[Black "manuellarrea"]
[Result "1-0"]
[WhiteElo "2134"]
[BlackElo "2184"]
[TimeControl "180+1"]
[EndTime "11:32:46 PDT"]
[Termination "Efremov_Vlad won on time"]

1. c4 {[%clk 0:03:00.9]} 1... Nf6 {[%clk 0:02:58.9]} 2. Nf3 {[%clk 0:03:00.5]}
2... g6 {[%clk 0:02:59.3]} 3. g3 {[%clk 0:02:59.8]} 3... Bg7 {[%clk 0:02:59.7]}
4. Bg2 {[%clk 0:03:00.2]} 4... O-O {[%clk 0:03:00.2]} 5. O-O {[%clk 0:03:00.4]}
5... d6 {[%clk 0:03:00.7]} 6. d4 {[%clk 0:03:00.7]} 6... a6 {[%clk 0:02:58.7]}
7. Nc3 {[%clk 0:02:59.2]} 7... Nc6 {[%clk 0:02:58.5]} 8. Bf4 {[%clk 0:02:58.8]}
8... e6 {[%clk 0:02:56.7]} 9. Rc1 {[%clk 0:02:52.3]} 9... Rb8 {[%clk 0:02:55.4]}
10. Qd2 {[%clk 0:02:48]} 10... Ne7 {[%clk 0:02:49.9]} 11. b4 {[%clk 0:02:40.1]}
11... b5 {[%clk 0:02:40.4]} 12. c5 {[%clk 0:02:19]} 12... Ned5 {[%clk
0:02:35.6]} 13. Nxd5 {[%clk 0:02:10.2]} 13... exd5 {[%clk 0:02:29.6]} 14. Bg5
{[%clk 0:01:31.3]} 14... Re8 {[%clk 0:02:23.1]} 15. Rfe1 {[%clk 0:01:23.8]}
15... Bf5 {[%clk 0:02:03.3]} 16. h3 {[%clk 0:01:20.5]} 16... Qd7 {[%clk
0:01:54.6]} 17. Bxf6 {[%clk 0:01:13]} 17... Bxf6 {[%clk 0:01:53.7]} 18. g4
{[%clk 0:01:13.3]} 18... Be4 {[%clk 0:01:53.5]} 19. Qf4 {[%clk 0:01:01]} 19...
Bg7 {[%clk 0:01:48.4]} 20. h4 {[%clk 0:00:44.1]} 20... Re7 {[%clk 0:01:38.3]}
21. h5 {[%clk 0:00:40.7]} 21... Rbe8 {[%clk 0:01:28]} 22. h6 {[%clk 0:00:38.3]}
22... Bh8 {[%clk 0:01:27.1]} 23. e3 {[%clk 0:00:35.8]} 23... f6 {[%clk
0:01:15.4]} 24. Qg3 {[%clk 0:00:26.8]} 24... Ra8 {[%clk 0:00:52.6]} 25. Nh4
{[%clk 0:00:25.4]} 25... Bxg2 {[%clk 0:00:50.6]} 26. Nxg2 {[%clk 0:00:25.4]}
26... a5 {[%clk 0:00:49.2]} 27. a3 {[%clk 0:00:26]} 27... axb4 {[%clk
0:00:48.4]} 28. axb4 {[%clk 0:00:25.9]} 28... Ra4 {[%clk 0:00:46.9]} 29. Rb1
{[%clk 0:00:18.4]} 29... dxc5 {[%clk 0:00:45.4]} 30. bxc5 {[%clk 0:00:17.2]}
30... c6 {[%clk 0:00:43]} 31. Nf4 {[%clk 0:00:17]} 31... Re8 {[%clk 0:00:32.5]}
32. g5 {[%clk 0:00:17.1]} 1-0

[Event "*** Titled Tuesday Blitz"]
[Site "Chess.com"]
[Date "2020.05.12"]
[Round "8"]
[White "DonBroca"]
[Black "Sesleria"]
[Result "0-1"]
[WhiteElo "2187"]
[BlackElo "1985"]
[TimeControl "180+1"]
[EndTime "11:32:47 PDT"]
[Termination "Sesleria won on time"]

1. e4 {[%clk 0:03:00.9]} 1... e5 {[%clk 0:02:58.6]} 2. Nf3 {[%clk 0:03:00.1]}
2... Nc6 {[%clk 0:02:58.6]} 3. Bb5 {[%clk 0:03:00.4]} 3... a6 {[%clk 0:02:58.4]}
4. Ba4 {[%clk 0:03:00.3]} 4... Nf6 {[%clk 0:02:58.4]} 5. O-O {[%clk 0:03:00.6]}
5... Be7 {[%clk 0:02:57.5]} 6. Re1 {[%clk 0:03:00.6]} 6... b5 {[%clk 0:02:53.5]}
7. Bb3 {[%clk 0:03:00.7]} 7... d6 {[%clk 0:02:54]} 8. c3 {[%clk 0:02:57.9]} 8...
O-O {[%clk 0:02:53.9]} 9. h3 {[%clk 0:02:58.3]} 9... Nb8 {[%clk 0:02:50.2]} 10.
d4 {[%clk 0:02:57.7]} 10... Nbd7 {[%clk 0:02:50.7]} 11. Nbd2 {[%clk 0:02:57.1]}
11... Bb7 {[%clk 0:02:50.9]} 12. Bc2 {[%clk 0:02:51.7]} 12... Re8 {[%clk
0:02:46.7]} 13. Nf1 {[%clk 0:02:51.9]} 13... Bf8 {[%clk 0:02:44.6]} 14. Bg5
{[%clk 0:02:49.8]} 14... h6 {[%clk 0:02:43.2]} 15. Bh4 {[%clk 0:02:49.4]} 15...
g6 {[%clk 0:02:42.2]} 16. g4 {[%clk 0:02:49.6]} 16... g5 {[%clk 0:02:32.3]} 17.
Bg3 {[%clk 0:02:47.6]} 17... Bg7 {[%clk 0:02:27.6]} 18. Qd2 {[%clk 0:02:43.7]}
18... Qe7 {[%clk 0:02:21.3]} 19. Rad1 {[%clk 0:02:41.3]} 19... Rad8 {[%clk
0:02:19.4]} 20. d5 {[%clk 0:02:37.5]} 20... Nf8 {[%clk 0:02:12.1]} 21. Ne3
{[%clk 0:02:37.3]} 21... Bc8 {[%clk 0:02:09.4]} 22. Kh2 {[%clk 0:02:34.1]} 22...
Ng6 {[%clk 0:02:08.9]} 23. Rg1 {[%clk 0:02:31.4]} 23... Nf4 {[%clk 0:02:08.3]}
24. Nf5 {[%clk 0:02:29.8]} 24... Bxf5 {[%clk 0:02:07.4]} 25. gxf5 {[%clk
0:02:28.6]} 25... c5 {[%clk 0:01:57]} 26. a4 {[%clk 0:02:19.6]} 26... Qc7 {[%clk
0:01:44.1]} 27. h4 {[%clk 0:02:02.3]} 27... Nh7 {[%clk 0:01:27.1]} 28. Bxf4
{[%clk 0:01:43.9]} 28... exf4 {[%clk 0:01:14.8]} 29. hxg5 {[%clk 0:01:43.2]}
29... hxg5 {[%clk 0:01:09.8]} 30. Nxg5 {[%clk 0:01:42.6]} 30... Nxg5 {[%clk
0:01:08.4]} 31. Rxg5 {[%clk 0:01:43.5]} 31... Kf8 {[%clk 0:01:06.6]} 32. Rdg1
{[%clk 0:01:28.6]} 32... Bf6 {[%clk 0:01:06.1]} 33. R5g4 {[%clk 0:00:58.2]}
33... Ke7 {[%clk 0:01:04.8]} 34. axb5 {[%clk 0:00:49.5]} 34... Rh8+ {[%clk
0:01:02]} 35. Kg2 {[%clk 0:00:49.3]} 35... axb5 {[%clk 0:01:02]} 36. Ra1 {[%clk
0:00:43]} 36... Rdg8 {[%clk 0:00:56.1]} 37. Rxg8 {[%clk 0:00:26.2]} 37... Rxg8+
{[%clk 0:00:55.9]} 38. Kf3 {[%clk 0:00:26.5]} 38... Be5 {[%clk 0:00:48.1]} 39.
Ra6 {[%clk 0:00:22.4]} 39... Kf6 {[%clk 0:00:44.2]} 40. Ke2 {[%clk 0:00:09]}
40... f3+ {[%clk 0:00:43.2]} 41. Kxf3 {[%clk 0:00:07]} 41... Rh8 {[%clk
0:00:40.5]} 42. Ke2 {[%clk 0:00:05.2]} 42... Qc8 {[%clk 0:00:39.1]} 43. Ra7
{[%clk 0:00:04.2]} 43... Qg8 {[%clk 0:00:37.8]} 44. Qe3 {[%clk 0:00:01.8]} 44...
Qg4+ {[%clk 0:00:37.4]} 45. Qf3 {[%clk 0:00:01.8]} 45... Qg1 {[%clk 0:00:36.9]}
0-1

[Event "*** Titled Tuesday Blitz"]
[Site "Chess.com"]
[Date "2020.05.12"]
[Round "8"]
[White "Borsuk_Konstantin"]
[Black "yobdc"]
[Result "1-0"]
[WhiteElo "2650"]
[BlackElo "1917"]
[TimeControl "180+1"]
[EndTime "11:32:49 PDT"]
[Termination "Borsuk_Konstantin won by checkmate"]

1. d4 {[%clk 0:03:00.9]} 1... Nf6 {[%clk 0:02:59.6]} 2. c4 {[%clk 0:03:00.9]}
2... e6 {[%clk 0:02:59.9]} 3. Nc3 {[%clk 0:03:00.8]} 3... Bb4 {[%clk 0:03:00]}
4. Qc2 {[%clk 0:03:01.4]} 4... O-O {[%clk 0:03:00]} 5. a3 {[%clk 0:03:01.2]}
5... Bxc3+ {[%clk 0:02:59.9]} 6. Qxc3 {[%clk 0:03:01.2]} 6... b6 {[%clk
0:02:59.8]} 7. Bg5 {[%clk 0:02:58.2]} 7... Bb7 {[%clk 0:02:59]} 8. f3 {[%clk
0:02:58.7]} 8... h6 {[%clk 0:02:51.6]} 9. Bh4 {[%clk 0:02:58.2]} 9... d5 {[%clk
0:02:49.6]} 10. cxd5 {[%clk 0:02:57.7]} 10... Nxd5 {[%clk 0:02:35.8]} 11. Bxd8
{[%clk 0:02:57.3]} 11... Nxc3 {[%clk 0:02:35.9]} 12. Bh4 {[%clk 0:02:57.5]}
12... Nd5 {[%clk 0:02:35.2]} 13. Bf2 {[%clk 0:02:54.2]} 13... Nd7 {[%clk
0:02:33.9]} 14. e4 {[%clk 0:02:49.3]} 14... Ne7 {[%clk 0:02:34]} 15. Bb5 {[%clk
0:02:36.6]} 15... c6 {[%clk 0:02:28.4]} 16. Ba4 {[%clk 0:02:36.4]} 16... Rfd8
{[%clk 0:02:15.4]} 17. Ne2 {[%clk 0:02:35.5]} 17... Rac8 {[%clk 0:02:14.6]} 18.
O-O-O {[%clk 0:02:27.7]} 18... c5 {[%clk 0:02:07.2]} 19. Bxd7 {[%clk 0:02:26.6]}
19... Rxd7 {[%clk 0:02:07.2]} 20. dxc5 {[%clk 0:02:26.6]} 20... Rdc7 {[%clk
0:02:02.8]} 21. b4 {[%clk 0:02:25.5]} 21... bxc5 {[%clk 0:01:53.6]} 22. Bxc5
{[%clk 0:02:19.4]} 22... Bc6 {[%clk 0:01:42.2]} 23. Nc3 {[%clk 0:02:12]} 23...
f5 {[%clk 0:01:41.4]} 24. exf5 {[%clk 0:01:59]} 24... Nxf5 {[%clk 0:01:38.8]}
25. Kb2 {[%clk 0:01:50.5]} 25... Nh4 {[%clk 0:01:34.1]} 26. Rd2 {[%clk
0:01:49.3]} 26... Nxg2 {[%clk 0:01:32.2]} 27. Rxg2 {[%clk 0:01:48.2]} 27... Bxf3
{[%clk 0:01:32.7]} 28. Rhg1 {[%clk 0:01:45.3]} 28... Bxg2 {[%clk 0:01:32.5]} 29.
Rxg2 {[%clk 0:01:46.2]} 29... Rd7 {[%clk 0:01:20.7]} 30. Kb3 {[%clk 0:01:39.2]}
30... Kf7 {[%clk 0:01:14.4]} 31. Kc4 {[%clk 0:01:38.4]} 31... g5 {[%clk
0:01:13.6]} 32. Rf2+ {[%clk 0:01:36.7]} 32... Kg6 {[%clk 0:01:13.5]} 33. Ne4
{[%clk 0:01:36]} 33... Rd1 {[%clk 0:00:48.4]} 34. Rf3 {[%clk 0:01:29]} 34... Rh1
{[%clk 0:00:47]} 35. Rf6+ {[%clk 0:01:27.4]} 35... Kh7 {[%clk 0:00:44.9]} 36.
Rf2 {[%clk 0:01:20.7]} 36... Kg6 {[%clk 0:00:44.7]} 37. a4 {[%clk 0:01:20.3]}
37... g4 {[%clk 0:00:44.5]} 38. a5 {[%clk 0:01:19.2]} 38... a6 {[%clk
0:00:44.1]} 39. Rf6+ {[%clk 0:01:18.4]} 39... Kg7 {[%clk 0:00:42.4]} 40. Rxe6
{[%clk 0:01:16.5]} 40... Rxh2 {[%clk 0:00:42.7]} 41. Rxa6 {[%clk 0:01:16.3]}
41... h5 {[%clk 0:00:40.2]} 42. Kd5 {[%clk 0:00:57.6]} 42... h4 {[%clk
0:00:40.1]} 43. Bd4+ {[%clk 0:00:54.6]} 43... Kg8 {[%clk 0:00:33.7]} 44. Nf6+
{[%clk 0:00:51.6]} 44... Kf7 {[%clk 0:00:33.7]} 45. Ra7+ {[%clk 0:00:50.7]}
45... Kg6 {[%clk 0:00:32.6]} 46. Nxg4 {[%clk 0:00:48.6]} 46... Rd2 {[%clk
0:00:32.2]} 47. Ne5+ {[%clk 0:00:44.5]} 47... Kf5 {[%clk 0:00:30.2]} 48. Rf7+
{[%clk 0:00:44.2]} 48... Kg5 {[%clk 0:00:26.2]} 49. Ke4 {[%clk 0:00:43.7]} 49...
Re8 {[%clk 0:00:19.4]} 50. Be3+ {[%clk 0:00:41]} 50... Kh5 {[%clk 0:00:15]} 51.
Rf5# {[%clk 0:00:38.5]} 1-0

[Event "*** Titled Tuesday Blitz"]
[Site "Chess.com"]
[Date "2020.05.12"]
[Round "8"]
[White "SaySpade4VIP"]
[Black "Sychev_Klementy"]
[Result "0-1"]
[WhiteElo "2667"]
[BlackElo "2868"]
[TimeControl "180+1"]
[EndTime "11:32:50 PDT"]
[Termination "Sychev_Klementy won by resignation"]

1. e4 {[%clk 0:03:00.9]} 1... e5 {[%clk 0:02:59.4]} 2. Nf3 {[%clk 0:03:00.3]}
2... Nc6 {[%clk 0:02:59.2]} 3. Bc4 {[%clk 0:03:00.5]} 3... Nf6 {[%clk
0:02:58.5]} 4. d3 {[%clk 0:03:00.6]} 4... Bc5 {[%clk 0:02:58.1]} 5. O-O {[%clk
0:02:58.1]} 5... O-O {[%clk 0:02:58.3]} 6. c3 {[%clk 0:02:56.2]} 6... d5 {[%clk
0:02:58.2]} 7. exd5 {[%clk 0:02:57.1]} 7... Nxd5 {[%clk 0:02:58.8]} 8. a4 {[%clk
0:02:57.7]} 8... a5 {[%clk 0:02:58.1]} 9. Nbd2 {[%clk 0:02:45.7]} 9... Nb6
{[%clk 0:02:52.5]} 10. Bb5 {[%clk 0:02:29]} 10... Bd6 {[%clk 0:02:51.7]} 11. Re1
{[%clk 0:02:09.9]} 11... Bg4 {[%clk 0:02:50.6]} 12. h3 {[%clk 0:01:57.5]} 12...
Bh5 {[%clk 0:02:49.8]} 13. Ne4 {[%clk 0:01:44]} 13... Na7 {[%clk 0:02:46.8]} 14.
Ng3 {[%clk 0:01:37.7]} 14... Bg6 {[%clk 0:02:27.9]} 15. Ne4 {[%clk 0:01:31]}
15... c6 {[%clk 0:02:16.4]} 16. Nxd6 {[%clk 0:01:28.6]} 16... Qxd6 {[%clk
0:02:14.5]} 17. Bc4 {[%clk 0:01:29]} 17... Nxc4 {[%clk 0:02:13.1]} 18. dxc4
{[%clk 0:01:29.9]} 18... Qxd1 {[%clk 0:02:10.8]} 19. Rxd1 {[%clk 0:01:30.8]}
19... f6 {[%clk 0:01:39.7]} 20. Be3 {[%clk 0:01:28.8]} 20... Bf5 {[%clk
0:01:38.7]} 21. Rd2 {[%clk 0:01:27.3]} 21... Be6 {[%clk 0:01:32.2]} 22. b3
{[%clk 0:01:25.9]} 22... Nc8 {[%clk 0:01:29.1]} 23. Rad1 {[%clk 0:01:18.5]}
23... Kf7 {[%clk 0:01:25.4]} 24. Rb2 {[%clk 0:01:00]} 24... Ne7 {[%clk
0:01:19.9]} 25. Bb6 {[%clk 0:00:57.9]} 25... Ra6 {[%clk 0:01:14.1]} 26. c5
{[%clk 0:00:52]} 26... Nd5 {[%clk 0:01:10.3]} 27. c4 {[%clk 0:00:12.5]} 27...
Nxb6 {[%clk 0:01:09.2]} 28. cxb6 {[%clk 0:00:13.4]} 28... Rxb6 {[%clk
0:01:09.6]} 29. Nd2 {[%clk 0:00:11]} 29... Rd8 {[%clk 0:01:08.9]} 30. Kf1 {[%clk
0:00:08.8]} 30... Rb4 {[%clk 0:00:53.6]} 31. Ke2 {[%clk 0:00:08.3]} 31... b5
{[%clk 0:00:53.5]} 32. axb5 {[%clk 0:00:09.2]} 32... cxb5 {[%clk 0:00:53.6]} 33.
cxb5 {[%clk 0:00:10.1]} 33... a4 {[%clk 0:00:47.8]} 34. Rdb1 {[%clk 0:00:09.4]}
34... Bf5 {[%clk 0:00:29.1]} 35. Ra1 {[%clk 0:00:07.1]} 35... axb3 {[%clk
0:00:29.5]} 36. Nxb3 {[%clk 0:00:04.6]} 36... Rxb5 {[%clk 0:00:28.2]} 37. Ra7+
{[%clk 0:00:02.5]} 37... Kg6 {[%clk 0:00:27.3]} 38. Raa2 {[%clk 0:00:03]} 38...
Rdb8 {[%clk 0:00:26.1]} 39. Kd2 {[%clk 0:00:02.5]} 39... Rxb3 {[%clk 0:00:25.1]}
0-1

[Event "*** Titled Tuesday Blitz"]
[Site "Chess.com"]
[Date "2020.05.12"]
[Round "8"]
[White "Nastya_Rakhmangulova"]
[Black "Grandmaster2B"]
[Result "1-0"]
[WhiteElo "2298"]
[BlackElo "2452"]
[TimeControl "180+1"]
[EndTime "11:32:50 PDT"]
[Termination "Nastya_Rakhmangulova won on time"]

1. e4 {[%clk 0:03:00.9]} 1... c5 {[%clk 0:02:59.8]} 2. Nf3 {[%clk 0:03:01]} 2...
d6 {[%clk 0:03:00.3]} 3. d4 {[%clk 0:03:01.3]} 3... cxd4 {[%clk 0:03:01.2]} 4.
Nxd4 {[%clk 0:03:01.9]} 4... Nf6 {[%clk 0:03:01.9]} 5. Nc3 {[%clk 0:03:02.5]}
5... a6 {[%clk 0:03:02.5]} 6. Bg5 {[%clk 0:03:03.1]} 6... e6 {[%clk 0:03:00.7]}
7. f4 {[%clk 0:03:03.4]} 7... Be7 {[%clk 0:03:01.4]} 8. Qf3 {[%clk 0:03:03.6]}
8... Qc7 {[%clk 0:03:02]} 9. O-O-O {[%clk 0:03:04.1]} 9... Nbd7 {[%clk
0:03:02.6]} 10. Bd3 {[%clk 0:03:04.6]} 10... h6 {[%clk 0:02:53.5]} 11. Bxf6
{[%clk 0:02:56]} 11... Nxf6 {[%clk 0:02:47.6]} 12. Rhe1 {[%clk 0:02:53]} 12...
b5 {[%clk 0:02:14.8]} 13. e5 {[%clk 0:02:49.2]} 13... Bb7 {[%clk 0:02:15.2]} 14.
Qh3 {[%clk 0:02:37.8]} 14... dxe5 {[%clk 0:01:36.2]} 15. fxe5 {[%clk 0:02:38.7]}
15... Nd7 {[%clk 0:01:28.6]} 16. Nxe6 {[%clk 0:02:30.1]} 16... fxe6 {[%clk
0:01:27.4]} 17. Bg6+ {[%clk 0:02:30]} 17... Kd8 {[%clk 0:01:26.9]} 18. Qxe6
{[%clk 0:02:29.6]} 18... Qc6 {[%clk 0:01:24.1]} 19. Rxd7+ {[%clk 0:02:26.3]}
19... Qxd7 {[%clk 0:01:24.1]} 20. Rd1 {[%clk 0:02:26.7]} 20... Qxd1+ {[%clk
0:01:24.7]} 21. Kxd1 {[%clk 0:02:27.2]} 21... Bc8 {[%clk 0:01:15.5]} 22. Qd5+
{[%clk 0:02:25.2]} 22... Kc7 {[%clk 0:01:16.1]} 23. Qf7 {[%clk 0:02:01.6]} 23...
Kd8 {[%clk 0:00:47.3]} 24. Nd5 {[%clk 0:01:48.4]} 24... Bg4+ {[%clk 0:00:43.1]}
25. Kc1 {[%clk 0:00:20.8]} 25... Ra7 {[%clk 0:00:40.9]} 26. Qf2 {[%clk
0:00:19.9]} 26... Rb7 {[%clk 0:00:21.4]} 27. Nxe7 {[%clk 0:00:19.6]} 27... Rxe7
{[%clk 0:00:18.4]} 28. Qd4+ {[%clk 0:00:19.4]} 28... Bd7 {[%clk 0:00:16.6]} 29.
Qb6+ {[%clk 0:00:11.6]} 29... Kc8 {[%clk 0:00:17.1]} 30. Be4 {[%clk 0:00:11.5]}
30... Bg4 {[%clk 0:00:06.1]} 31. Qxa6+ {[%clk 0:00:11.2]} 31... Kd7 {[%clk
0:00:05.8]} 32. Qd6+ {[%clk 0:00:11.2]} 32... Ke8 {[%clk 0:00:05.8]} 33. Bg6+
{[%clk 0:00:11.5]} 33... Rf7 {[%clk 0:00:02.6]} 34. e6 {[%clk 0:00:10]} 1-0

[Event "*** Titled Tuesday Blitz"]
[Site "Chess.com"]
[Date "2020.05.12"]
[Round "8"]
[White "Baronessa08"]
[Black "MiroVlasenko"]
[Result "1/2-1/2"]
[WhiteElo "2475"]
[BlackElo "2608"]
[TimeControl "180+1"]
[EndTime "11:32:51 PDT"]
[Termination "Game drawn by agreement"]

1. c4 {[%clk 0:03:00.9]} 1... Nc6 {[%clk 0:02:58]} 2. g3 {[%clk 0:02:57.3]} 2...
e5 {[%clk 0:02:58.1]} 3. Bg2 {[%clk 0:02:56.9]} 3... f5 {[%clk 0:02:58.6]} 4.
Nc3 {[%clk 0:02:53.3]} 4... Nf6 {[%clk 0:02:58.8]} 5. d3 {[%clk 0:02:53.4]} 5...
g6 {[%clk 0:02:58.9]} 6. e4 {[%clk 0:02:53.4]} 6... Bg7 {[%clk 0:02:53.7]} 7.
Nge2 {[%clk 0:02:52.9]} 7... d6 {[%clk 0:02:53.3]} 8. O-O {[%clk 0:02:52.3]}
8... O-O {[%clk 0:02:51.1]} 9. exf5 {[%clk 0:02:41]} 9... Bxf5 {[%clk
0:02:50.4]} 10. Be3 {[%clk 0:02:14.9]} 10... Qd7 {[%clk 0:02:44.1]} 11. d4
{[%clk 0:02:07.7]} 11... Ng4 {[%clk 0:02:43.7]} 12. Qd2 {[%clk 0:01:48.4]} 12...
Nxe3 {[%clk 0:02:39.1]} 13. fxe3 {[%clk 0:01:46.9]} 13... Bh6 {[%clk 0:02:38.6]}
14. d5 {[%clk 0:01:43.8]} 14... Ne7 {[%clk 0:02:32.5]} 15. Kh1 {[%clk
0:01:34.5]} 15... Kg7 {[%clk 0:02:22]} 16. Ng1 {[%clk 0:01:32.1]} 16... Ng8
{[%clk 0:02:15.8]} 17. Qe1 {[%clk 0:01:31.5]} 17... Qe7 {[%clk 0:02:12.4]} 18.
e4 {[%clk 0:01:29.4]} 18... Bd7 {[%clk 0:02:12.2]} 19. Bh3 {[%clk 0:01:23.8]}
19... Nf6 {[%clk 0:02:11.3]} 20. Bxd7 {[%clk 0:01:21.5]} 20... Qxd7 {[%clk
0:02:11.6]} 21. Qe2 {[%clk 0:01:16.5]} 21... Ng4 {[%clk 0:02:07.1]} 22. h3
{[%clk 0:01:04.4]} 22... Nf6 {[%clk 0:02:01.4]} 23. Kg2 {[%clk 0:01:03.6]} 23...
Rf7 {[%clk 0:02:00]} 24. Rf2 {[%clk 0:01:00.8]} 24... Raf8 {[%clk 0:01:56.1]}
25. Raf1 {[%clk 0:01:00.6]} 25... a6 {[%clk 0:01:55.8]} 26. a4 {[%clk
0:00:56.1]} 26... Qd8 {[%clk 0:01:55.2]} 27. Nf3 {[%clk 0:00:49.6]} 27... Nh5
{[%clk 0:01:51.3]} 28. Ne1 {[%clk 0:00:48.8]} 28... Rxf2+ {[%clk 0:01:46.9]} 29.
Rxf2 {[%clk 0:00:49.1]} 29... Rxf2+ {[%clk 0:01:45.4]} 30. Qxf2 {[%clk
0:00:48.8]} 30... Qg5 {[%clk 0:01:44.7]} 31. Nd3 {[%clk 0:00:44.5]} 31... b6
{[%clk 0:01:39.2]} 32. b4 {[%clk 0:00:43.7]} 32... Nf6 {[%clk 0:01:32.5]} 33. c5
{[%clk 0:00:39.8]} 33... bxc5 {[%clk 0:01:28.9]} 34. bxc5 {[%clk 0:00:39.9]}
34... Qd2 {[%clk 0:01:28.8]} 35. Qxd2 {[%clk 0:00:14.8]} 35... Bxd2 {[%clk
0:01:28.1]} 36. Nb1 {[%clk 0:00:15.3]} 36... Ba5 {[%clk 0:01:18.9]} 37. Kf3
{[%clk 0:00:14.2]} 37... Nd7 {[%clk 0:01:18.2]} 38. c6 {[%clk 0:00:13.6]} 38...
Nb6 {[%clk 0:01:18.1]} 39. Na3 {[%clk 0:00:08.4]} 39... Kf7 {[%clk 0:01:17.6]}
40. Nb2 {[%clk 0:00:07.2]} 40... Bb4 {[%clk 0:01:12.5]} 41. Nac4 {[%clk
0:00:06.8]} 41... Nc8 {[%clk 0:01:11.8]} 42. Nd3 {[%clk 0:00:05.9]} 42... Bc3
{[%clk 0:01:11.1]} 43. Ke3 {[%clk 0:00:05.1]} 43... Ke7 {[%clk 0:01:11]} 44. Kf3
{[%clk 0:00:05.3]} 44... Bd4 {[%clk 0:01:10.9]} 45. Kg4 {[%clk 0:00:05.1]} 45...
h6 {[%clk 0:01:10.9]} 46. Kf3 {[%clk 0:00:05.3]} 46... h5 {[%clk 0:01:10.4]} 47.
g4 {[%clk 0:00:05.7]} 47... Kf6 {[%clk 0:01:07.1]} 48. gxh5 {[%clk 0:00:04.7]}
48... gxh5 {[%clk 0:01:07]} 49. Kg3 {[%clk 0:00:03.6]} 49... Kg5 {[%clk
0:01:07.2]} 50. Kg2 {[%clk 0:00:03]} 1/2-1/2

[Event "*** Titled Tuesday Blitz"]
[Site "Chess.com"]
[Date "2020.05.12"]
[Round "8"]
[White "mamey78"]
[Black "rpragchess"]
[Result "0-1"]
[WhiteElo "2375"]
[BlackElo "2870"]
[TimeControl "180+1"]
[EndTime "11:32:52 PDT"]
[Termination "rpragchess won by resignation"]

1. e4 {[%clk 0:03:00.9]} 1... c5 {[%clk 0:02:59.8]} 2. Nf3 {[%clk 0:03:00.1]}
2... e6 {[%clk 0:03:00.2]} 3. c3 {[%clk 0:02:59.5]} 3... Nf6 {[%clk 0:02:58.7]}
4. e5 {[%clk 0:02:59.1]} 4... Nd5 {[%clk 0:02:58.5]} 5. d4 {[%clk 0:03:00]} 5...
cxd4 {[%clk 0:02:59.4]} 6. cxd4 {[%clk 0:03:00.2]} 6... d6 {[%clk 0:03:00.3]} 7.
Bc4 {[%clk 0:02:59.5]} 7... dxe5 {[%clk 0:03:00.7]} 8. dxe5 {[%clk 0:02:58.8]}
8... Be7 {[%clk 0:03:01.1]} 9. O-O {[%clk 0:02:58.1]} 9... O-O {[%clk
0:02:59.4]} 10. Qe2 {[%clk 0:02:56.9]} 10... Bd7 {[%clk 0:02:55.7]} 11. Qe4
{[%clk 0:02:37.6]} 11... Bc6 {[%clk 0:02:50.2]} 12. Qg4 {[%clk 0:02:34.6]} 12...
g6 {[%clk 0:02:28.2]} 13. Bh6 {[%clk 0:02:30.8]} 13... Re8 {[%clk 0:02:28.4]}
14. h4 {[%clk 0:02:15.9]} 14... Nd7 {[%clk 0:01:28.9]} 15. Nbd2 {[%clk
0:02:02.5]} 15... Qc7 {[%clk 0:01:20]} 16. Rfe1 {[%clk 0:01:57]} 16... b5 {[%clk
0:01:00.7]} 17. Bb3 {[%clk 0:01:51.9]} 17... Nc5 {[%clk 0:00:59.9]} 18. Rac1
{[%clk 0:01:34.1]} 18... Nd3 {[%clk 0:00:47.3]} 19. Bxd5 {[%clk 0:01:10.4]}
19... exd5 {[%clk 0:00:26]} 20. e6 {[%clk 0:01:08.8]} 20... Nxe1 {[%clk
0:00:23.7]} 21. Rxc6 {[%clk 0:00:50.8]} 21... Nxf3+ {[%clk 0:00:18.5]} 22. Nxf3
{[%clk 0:00:50.2]} 22... Qxc6 {[%clk 0:00:13.4]} 23. exf7+ {[%clk 0:00:48.7]}
23... Kh8 {[%clk 0:00:13.9]} 24. fxe8=Q+ {[%clk 0:00:38.1]} 24... Rxe8 {[%clk
0:00:12.6]} 25. Be3 {[%clk 0:00:28.8]} 25... Bf6 {[%clk 0:00:11.9]} 26. h5
{[%clk 0:00:28.2]} 26... Qe6 {[%clk 0:00:12]} 27. Qf4 {[%clk 0:00:24.3]} 27...
Qf5 {[%clk 0:00:11.6]} 28. Qd6 {[%clk 0:00:16.7]} 28... d4 {[%clk 0:00:07.6]}
29. Nxd4 {[%clk 0:00:12.8]} 29... Qb1+ {[%clk 0:00:06.2]} 30. Kh2 {[%clk
0:00:10.6]} 30... Be5+ {[%clk 0:00:06.4]} 31. Qxe5+ {[%clk 0:00:10.6]} 31...
Rxe5 {[%clk 0:00:07.3]} 32. Nf3 {[%clk 0:00:10.2]} 32... Rxh5+ {[%clk
0:00:07.4]} 0-1